bitfinex/quotes_ETHUSD_20250404
["timestamp","ask_amount","ask_price","bid_price","bid_amount"]
[1743728436359,6.70959636,1812.5,1812.2,11.03576]
[1743728436883,6.10463636,1812.5,1812.2,11.03576]
[1743728437183,6.10463636,1812.5,1812.3,5.51781]
[1743728437687,11.62211636,1812.5,1812.1,5.51833]
[1743728437875,11.56708,1812.5,1812.1,11.03666]
[1743728438079,17.08445,1812.5,1812.1,11.03666]
[1743728438396,6.0496,1812.5,1812.3,5.51778]
[1743728438612,6.10463636,1812.5,1812.3,5.51778]
[1743728439199,6.10463636,1812.5,1812.2,5.51801]
[1743728439800,6.10463636,1812.5,1812.2,5.518]
[1743728440100,6.10463636,1812.5,1812.3,5.51772]
[1743728440300,5.51765,1812.4,1812.1,5.51833]
[1743728440602,5.51765,1812.4,1812.1,11.03664]
[1743728440775,15.78772166,1812.5,1812.1,5.51831]
[1743728440981,17.36649383,1812.5,1812.2,5.51811]
[1743728441205,0.7525,1812.4,1812.2,5.51811]
[1743728441580,0.7525,1812.4,1812.1,11.03665]
[1743728441772,0.7525,1812.4,1812.1,5.51831]
[1743728442103,0.7525,1812.4,1812.1,11.03661]
[1743728442465,0.7525,1812.4,1812.2,5.51811]
[1743728443114,0.7525,1812.4,1812.2,11.03613]
[1743728443403,6.2701,1812.4,1812.1,11.03676]
[1743728443575,0.7525,1812.4,1812.2,5.51811]
[1743728443771,0.80753636,1812.4,1812.2,5.51811]
[1743728443973,0.80753636,1812.4,1811.8,1.103892]
[1743728443974,0.7525,1812.2,1811.8,0.55]
[1743728444174,0.7525,1811.9,1811.6,5.51994]
[1743728444409,0.80753636,1811.9,1811.7,5.51962]
[1743728444704,0.7525,1811.9,1811.7,11.03919]
[1743728445008,0.7525,1811.9,1811.6,5.51993]
[1743728445172,6.27166,1811.9,1811.6,5.51993]
[1743728445377,0.7525,1811.9,1811.7,5.51966]
[1743728445577,0.80753636,1811.9,1811.7,5.51966]
[1743728445805,0.80753636,1811.9,1811.6,5.51982]
[1743728445986,0.80753636,1811.9,1811.7,5.51967]
[1743728446289,0.7525,1811.9,1811.7,5.51967]
[1743728446586,0.7525,1811.9,1811.7,5.51953]
[1743728446780,0.7525,1811.9,1811.7,11.0391]
[1743728447291,0.7525,1811.9,1811.7,5.51953]
[1743728448713,0.7525,1811.9,1811.6,5.51984]
[1743728448877,0.7525,1811.9,1811.6,11.03968]
[1743728449075,0.7525,1811.9,1811.7,5.51966]
[1743728449510,0.7525,1811.9,1811.6,5.51984]
[1743728449708,0.7525,1811.9,1811.7,5.51965]
[1743728450015,5.273,1812.0,1811.9,5.51906]
[1743728451099,5.273,1812.0,1811.8,5.51937]
[1743728451504,0.7525,1811.9,1811.6,11.591734]
[1743728451719,0.7525,1811.9,1811.7,5.51964]
[1743728451924,0.7525,1811.9,1811.7,5.51956]
[1743728452780,0.7525,1811.9,1811.6,5.51989]
[1743728452980,0.7525,1811.9,1811.6,11.03976]
[1743728453191,0.7525,1811.9,1811.6,12.143736]
[1743728453910,0.7525,1811.9,1811.7,5.5196]
[1743728454317,0.7525,1811.9,1811.7,11.03913]
[1743728455211,0.7525,1811.9,1811.6,6.623666]
[1743728455392,0.7525,1811.9,1811.7,5.51963]
[1743728455593,0.7525,1811.9,1811.6,5.51969]
[1743728455903,10.54380166,1811.7,1811.4,5.52058]
[1743728456224,0.8034,1811.5,1811.2,5.52115]
[1743728456407,0.8034,1811.5,1811.2,6.62541]
[1743728456578,0.8034,1811.5,1811.2,12.14644]
[1743728456779,0.8034,1811.5,1811.3,11.04156]
[1743728457013,0.8034,1811.5,1811.2,6.62541]
[1743728457223,0.8034,1811.5,1811.3,5.52086]
[1743728457923,0.8034,1811.5,1811.3,5.52075]
[1743728459123,0.8034,1811.5,1811.2,11.04234]
[1743728459917,0.8034,1811.5,1811.3,5.52087]
[1743728460083,0.85843636,1811.5,1811.2,11.04234]
[1743728460283,0.85843636,1811.5,1811.3,5.52082]
[1743728461386,6.37878636,1811.5,1811.2,6.625404]
[1743728461610,6.37878636,1811.5,1811.2,5.52117]
[1743728462119,0.8034,1811.5,1811.3,5.52076]
[1743728462306,0.85843636,1811.5,1811.3,5.52076]
[1743728462827,0.8034,1811.5,1811.3,5.52076]
[1743728463312,0.85843636,1811.5,1811.2,5.5212]
[1743728463519,6.37881636,1811.5,1811.2,5.5212]
[1743728464219,0.85843636,1811.5,1811.2,11.04224]
[1743728464522,0.85843636,1811.5,1811.3,5.52085]
[1743728464692,0.85843636,1811.5,1811.2,5.5211]
[1743728464894,0.85843636,1811.5,1811.2,5.52104]
[1743728465137,0.85843636,1811.5,1811.2,11.04212]
[1743728465941,0.85843636,1811.5,1811.2,11.04208]
[1743728466352,0.8034,1811.5,1811.3,5.52076]
[1743728466544,5.273,1811.6,1811.4,5.52059]
[1743728466841,6.0774,1811.9,1811.8,5.51937]
[1743728467228,6.0774,1811.9,1811.7,5.51954]
[1743728467430,6.0774,1811.9,1811.7,11.03907]
[1743728467613,6.0774,1811.9,1811.7,5.51953]
[1743728468014,6.0774,1811.9,1811.6,5.51987]
[1743728468644,6.0774,1811.9,1811.7,5.51957]
[1743728468813,6.0774,1811.9,1811.8,5.51937]
[1743728469010,45.8246,1812.1,1811.9,5.51879]
[1743728469544,40.5506,1812.1,1811.9,5.51879]
[1743728469716,0.7856,1812.3,1812.1,5.51828]
[1743728469915,6.0596,1812.3,1812.1,11.03654]
[1743728470138,6.0596,1812.3,1812.1,11.03658]
[1743728470722,5.274,1812.3,1812.1,11.03656]
[1743728470920,5.274,1812.3,1812.1,5.51826]
[1743728471138,5.274,1812.3,1812.1,11.03658]
[1743728471510,5.274,1812.3,1812.2,5.51815]
[1743728472046,0.7856,1812.4,1812.2,11.0363]
[1743728472251,19.29026166,1812.5,1812.4,5.51754]
[1743728472427,14.284,1812.5,1812.4,5.51754]
[1743728473025,11.284,1812.5,1812.4,5.51754]
[1743728473261,0.7856,1812.6,1812.4,5.51754]
[1743728473467,40.5506,1812.8,1812.7,5.51663]
[1743728473665,45.8236,1812.8,1812.7,5.51663]
[1743728473961,45.038,1812.8,1812.6,5.51693]
[1743728474340,45.038,1812.8,1812.7,5.51663]
[1743728474661,45.038,1812.8,1812.6,5.51693]
[1743728475062,45.038,1812.8,1812.6,11.03373]
[1743728475520,45.038,1812.8,1812.6,11.03361]
[1743728476029,45.038,1812.8,1812.7,5.51663]
[1743728477440,45.038,1812.8,1812.6,6.620161]
[1743728477618,0.7856,1812.7,1812.6,1.103361]
[1743728477820,0.7856,1812.7,1812.5,5.5172]
[1743728478862,0.84063636,1812.7,1812.5,5.5172]
[1743728479163,0.84063636,1812.7,1812.4,5.5175]
[1743728479377,4.22066166,1812.5,1811.5,9.74070166]
[1743728479523,5.32703636,1812.4,1812.1,5.51823]
[1743728479722,5.272,1812.4,1812.2,5.51808]
[1743728480359,5.32703636,1812.4,1812.2,5.51808]
[1743728480754,0.7856,1812.3,1812.1,11.03659]
[1743728481069,0.7856,1812.3,1812.1,11.03653]
[1743728482535,0.7856,1812.3,1812.1,5.51823]
[1743728482749,0.7856,1812.3,1812.1,11.03653]
[1743728483151,0.7856,1812.3,1812.1,5.51823]
[1743728483374,0.7856,1812.3,1812.2,5.51815]
[1743728483532,0.7856,1812.3,1812.1,6.7497526]
[1743728483912,0.05503636,1812.2,1811.9,5.51892]
[1743728484066,10.52422166,1812.3,1812.0,5.51871]
[1743728484466,0.05503636,1812.2,1811.9,5.51891]
[1743728484967,5.57324636,1812.2,1811.8,11.58857]
[1743728485167,5.57324636,1812.2,1811.8,12.777377]
[1743728485671,5.57324636,1812.2,1811.9,5.51904]
[1743728485836,5.57324636,1812.2,1811.8,12.777297]
[1743728485837,11.09158636,1812.2,1811.8,12.777297]
[1743728486038,5.51821,1812.2,1811.8,12.777297]
[1743728486346,5.57324636,1812.2,1811.9,5.51905]
[1743728486827,10.57920802,1812.3,1811.9,6.7966187]
[1743728487374,10.57920802,1812.3,1811.9,12.3155687]
[1743728487576,16.09722802,1812.3,1811.9,12.3155687]
[1743728487781,16.04219166,1812.3,1811.9,12.3155687]
[1743728488085,5.51818,1812.2,1811.9,12.3155487]
[1743728488485,16.04230166,1812.3,1812.0,5.51873]
[1743728488984,10.52417166,1812.3,1812.0,5.51873]
[1743728489185,16.09720802,1812.3,1812.0,5.51873]
[1743728489483,16.04217166,1812.3,1811.9,12.3155487]
[1743728489785,5.51817,1812.2,1811.9,6.7966187]
[1743728489971,5.57320636,1812.2,1811.9,1.2777087]
[1743728490165,11.03649,1812.2,1811.9,6.7967287]
[1743728490373,5.51817,1812.2,1811.9,6.7967287]
[1743728490879,5.57320636,1812.2,1811.9,6.7967287]
[1743728491190,10.52414166,1812.3,1812.0,5.51872]
[1743728491888,5.51817,1812.2,1811.9,12.3156187]
[1743728492095,5.51817,1812.2,1811.9,6.7966487]
[1743728492393,5.51825,1812.2,1811.9,6.85183247]
[1743728492573,5.51825,1812.2,1811.9,12.37075247]
[1743728492759,5.51825,1812.2,1811.9,6.7966287]
[1743728492958,16.04225166,1812.3,1811.9,12.3155687]
[1743728493158,10.52414166,1812.3,1811.9,6.7966287]
[1743728493455,5.51816,1812.2,1811.9,5.51892]
[1743728493792,5.51816,1812.2,1811.9,5.57410378]
[1743728493961,5.51816,1812.2,1811.9,11.09305378]
[1743728494163,5.51816,1812.2,1811.9,11.03787]
[1743728494461,5.51816,1812.2,1811.9,5.51892]
[1743728494689,5.51816,1812.2,1811.9,6.125812]
[1743728495359,5.51879,1812.0,1811.8,0.55]
[1743728495561,9.73983166,1811.9,1811.6,5.51991]
[1743728495757,9.73983166,1811.9,1811.6,11.03978]
[1743728496087,6.0893,1812.0,1811.7,5.51959]
[1743728496399,11.66310636,1812.0,1811.7,6.071439]
[1743728496681,6.0893,1812.0,1811.8,5.51927]
[1743728496973,6.14433636,1812.0,1811.8,5.51927]
[1743728497179,6.14433636,1812.0,1811.8,5.51937]
[1743728497379,6.0893,1812.0,1811.8,5.51937]
[1743728497579,6.14433636,1812.0,1811.7,11.591009]
[1743728497947,11.66309636,1812.0,1811.7,6.071439]
[1743728498147,11.60806,1812.0,1811.7,6.071439]
[1743728498348,6.0893,1812.0,1811.7,0.551959]
[1743728498646,10.14417761,1812.1,1812.0,5.51873]
[1743728498647,5.272,1812.1,1812.0,5.51873]
[1743728499684,6.01,1812.3,1812.1,5.51821]
[1743728499892,11.282,1812.3,1812.1,5.51821]
[1743728500074,11.282,1812.3,1812.2,5.51815]
[1743728500275,3.0,1812.5,1812.3,5.51785]
[1743728500503,0.05503636,1812.5,1812.4,5.51754]
[1743728500791,5.272,1812.5,1812.4,5.51754]
[1743728504600,5.272,1812.5,1812.3,11.03544]
[1743728504901,5.272,1812.5,1812.3,12.2493476]
[1743728505864,5.272,1812.5,1812.4,5.51754]
[1743728506565,40.17430852,1812.8,1812.4,5.81704]
[1743728506866,5.68030852,1812.8,1812.6,5.51665]
[1743728507273,5.68030852,1812.8,1812.7,5.51663]
[1743728507482,5.271,1812.8,1812.7,5.51663]
[1743728507665,0.1,1812.9,1812.8,5.51632]
[1743728510809,0.1,1812.9,1812.8,5.57148072]
[1743728513579,0.1,1812.9,1812.8,6.12148072]
[1743728513780,0.1,1812.9,1812.8,7.31522779]
[1743728514279,0.1,1812.9,1812.8,7.61472779]
[1743728515095,0.1,1812.9,1812.8,7.55956707]
[1743728516422,0.1,1812.9,1812.8,7.61471492]
[1743728516583,0.1,1812.9,1812.8,7.55956707]
[1743728518066,6.0287,1813.7,1813.6,5.51384]
[1743728518351,6.0287,1813.8,1813.7,5.51359]
[1743728519334,5.369,1813.9,1813.8,5.51328]
[1743728519504,5.369,1813.9,1813.7,5.51359]
[1743728520031,9.64469802,1813.9,1813.6,1.102796]
[1743728520236,15.15777802,1813.9,1813.6,6.616586]
[1743728520447,15.10274166,1813.9,1813.6,6.616586]
[1743728520908,9.58966166,1813.9,1813.6,6.616586]
[1743728521110,9.64469802,1813.9,1813.6,6.616566]
[1743728521415,9.64469802,1813.9,1813.6,12.130366]
[1743728521609,9.64469802,1813.9,1813.7,5.51348]
[1743728521947,5.51329,1813.8,1813.6,1.102796]
[1743728522240,15.10281166,1813.9,1813.6,6.616546]
[1743728522842,9.58966166,1813.9,1813.6,12.130316]
[1743728523048,9.64469802,1813.9,1813.7,5.51349]
[1743728523249,0.7597,1813.8,1813.3,0.2995]
[1743728523410,5.56880636,1813.7,1813.3,5.5148]
[1743728523609,4.22066166,1813.5,1813.2,5.51502]
[1743728523907,10.49536166,1813.3,1812.9,5.51597]
[1743728524228,6.27552,1813.0,1812.7,5.51649]
[1743728524534,5.32203636,1812.9,1812.6,11.585375]
[1743728525250,5.32203636,1812.9,1812.7,5.51658]
[1743728525548,5.51654,1812.8,1812.4,5.51751]
[1743728525761,9.79254802,1812.7,1812.3,5.51776]
[1743728525952,15.30943802,1812.7,1812.3,5.51776]
[1743728526155,15.25440166,1812.7,1812.3,5.51776]
[1743728526466,5.5176,1812.4,1812.1,5.51841]
[1743728526654,5.267,1812.3,1812.1,6.622126]
[1743728526850,9.48766166,1812.3,1812.1,6.622066]
[1743728527235,9.48766166,1812.3,1812.0,5.5187]
[1743728527614,15.06054802,1812.3,1812.0,5.5187]
[1743728527825,15.00551166,1812.3,1812.0,5.5187]
[1743728528067,9.48766166,1812.3,1812.0,5.5187]
[1743728528234,9.54269802,1812.3,1812.1,5.51835]
[1743728528430,5.267,1812.3,1812.2,5.51815]
[1743728531438,5.32303636,1812.6,1812.4,11.03475]
[1743728531767,5.268,1812.6,1812.4,11.03475]
[1743728531967,5.268,1812.6,1812.4,5.51736]
[1743728532167,5.268,1812.6,1812.5,5.51724]
[1743728532365,4.22066166,1812.8,1812.6,5.5169]
[1743728532570,5.00186166,1812.8,1812.6,5.5169]
[1743728532795,5.268,1812.7,1812.5,6.62053]
[1743728533081,5.268,1812.7,1812.5,5.51707]
[1743728533286,5.268,1812.7,1812.4,5.51753]
[1743728533476,10.78465,1812.7,1812.3,11.03562]
[1743728533779,0.05503636,1812.6,1812.3,11.03562]
[1743728534035,0.05503636,1812.6,1812.1,1.403205]
[1743728534184,5.51756,1812.4,1812.1,5.51836]
[1743728534390,5.32403636,1812.3,1812.1,5.51836]
[1743728534759,5.269,1812.3,1812.1,5.51836]
[1743728535382,5.269,1812.3,1812.1,11.03672]
[1743728535689,8.269,1812.6,1812.1,6.622062]
[1743728535891,8.32403636,1812.6,1812.4,5.51743]
[1743728536059,5.269,1812.6,1812.4,11.03483]
[1743728536456,5.269,1812.6,1812.4,11.03479]
[1743728536688,5.269,1812.6,1812.5,5.51724]
[1743728537592,5.269,1812.6,1812.4,5.51739]
[1743728538061,5.32403636,1812.6,1812.4,5.51739]
[1743728538497,5.32403636,1812.6,1812.4,11.03481]
[1743728538785,5.269,1812.6,1812.4,5.51739]
[1743728539248,5.269,1812.6,1812.5,5.51724]
[1743728539448,5.269,1812.6,1812.3,11.03558]
[1743728539646,5.269,1812.6,1812.3,5.51779]
[1743728539963,10.78604,1812.6,1812.3,11.03549]
[1743728540179,10.78604,1812.6,1812.3,11.0354]
[1743728540410,5.269,1812.6,1812.3,11.0354]
[1743728540810,5.32403636,1812.6,1812.3,5.5177]
[1743728541001,5.32403636,1812.6,1812.4,5.51732]
[1743728541196,5.32403636,1812.6,1812.3,6.06947]
[1743728541401,10.84096636,1812.6,1812.3,6.06947]
[1743728541616,10.84096636,1812.6,1812.3,5.5177]
[1743728541920,10.84096636,1812.6,1812.3,11.03541]
[1743728542125,10.84096636,1812.6,1812.3,5.5177]
[1743728542330,5.32403636,1812.6,1812.1,1.103672]
[1743728542489,5.269,1812.6,1812.3,0.2995]
[1743728542889,0.05503636,1812.5,1812.3,5.51782]
[1743728543188,0.05503636,1812.5,1812.3,5.51774]
[1743728543396,0.05503636,1812.5,1812.4,5.51754]
[1743728543605,9.54469802,1812.6,1812.4,5.51754]
[1743728543782,9.54469802,1812.6,1812.3,5.51774]
[1743728544025,15.06165802,1812.6,1812.3,5.51773]
[1743728544205,15.00662166,1812.6,1812.3,5.51773]
[1743728544404,0.05503636,1812.5,1812.3,11.03543]
[1743728544602,9.54469802,1812.6,1812.3,12.138973]
[1743728544821,9.54469802,1812.6,1812.3,6.621243]
[1743728545232,9.54469802,1812.6,1812.4,5.51752]
[1743728545736,9.54469802,1812.6,1812.4,5.51743]
[1743728547022,0.7725,1812.7,1812.3,5.51785]
[1743728547324,0.7725,1812.7,1812.6,5.51693]
[1743728547505,0.7725,1812.7,1812.5,5.51724]
[1743728547817,6.0415,1812.7,1812.5,5.51724]
[1743728548319,6.09653636,1812.7,1812.5,5.51724]
[1743728548533,6.09653636,1812.7,1812.5,5.51714]
[1743728548697,6.09653636,1812.7,1812.6,5.51693]
[1743728549621,6.09653636,1812.7,1812.5,11.03428]
[1743728550084,6.09653636,1812.7,1812.5,5.51713]
[1743728550520,6.09653636,1812.7,1812.4,6.069275]
[1743728550521,11.61328636,1812.7,1812.4,6.069275]
[1743728550696,17.07502,1812.7,1812.4,5.51749]
[1743728550896,11.55825,1812.7,1812.4,5.51749]
[1743728551189,5.51696,1812.6,1812.3,5.5178]
[1743728551386,9.73762166,1812.6,1812.3,11.03555]
[1743728551693,6.0415,1812.7,1812.5,5.51724]
[1743728551886,6.09653636,1812.7,1812.5,11.03439]
[1743728552087,6.09653636,1812.7,1812.5,11.03429]
[1743728552286,6.09653636,1812.7,1812.5,5.51714]
[1743728552731,6.09653636,1812.7,1812.3,1.103555]
[1743728552928,9.73770166,1812.6,1812.3,5.51783]
[1743728553131,0.8004,1812.4,1812.3,5.51783]
[1743728554097,0.05503636,1812.5,1812.4,5.51754]
[1743728554326,5.07609802,1812.6,1812.1,0.55]
[1743728554514,5.07609802,1812.6,1812.3,5.51771]
[1743728554717,5.07609802,1812.6,1812.3,11.03544]
[1743728554922,5.07609802,1812.6,1812.4,5.51743]
[1743728555126,0.85543636,1812.6,1812.4,5.51743]
[1743728556020,0.85543636,1812.6,1812.1,6.06839]
[1743728556021,10.59330802,1812.6,1812.2,5.51806]
[1743728556210,0.8004,1812.3,1812.1,5.5184]
[1743728556440,6.0694,1812.3,1812.1,11.03672]
[1743728556955,6.0694,1812.3,1812.1,5.51832]
[1743728557128,6.0694,1812.3,1812.1,5.51831]
[1743728557544,6.0694,1812.3,1812.1,11.03665]
[1743728558147,6.0694,1812.3,1812.1,6.621975]
[1743728558443,5.269,1812.3,1812.2,5.51815]
[1743728558851,0.826,1812.2,1811.9,5.51903]
[1743728559010,5.51866,1812.1,1811.7,5.51956]
[1743728559211,5.10169802,1812.2,1811.6,0.2995]
[1743728559212,9.79461802,1812.0,1811.6,11.33925]
[1743728559416,9.79461802,1812.0,1811.6,5.51983]
[1743728559417,6.095,1811.9,1811.6,5.51983]
[1743728559614,6.15003636,1811.9,1811.6,5.51983]
[1743728559837,11.66912636,1811.9,1811.6,5.51983]
[1743728560043,0.05503636,1811.8,1811.6,5.51983]
[1743728560549,6.095,1811.9,1811.7,5.51967]
[1743728561048,6.15003636,1811.9,1811.6,5.51983]
[1743728561243,6.15003636,1811.9,1811.6,12.143667]
[1743728561451,6.15003636,1811.9,1811.7,11.03908]
[1743728562337,5.269,1811.9,1811.8,5.51937]
[1743728563827,5.269,1811.9,1811.7,5.51952]
[1743728564148,5.269,1811.9,1811.7,6.1818727]
[1743728564308,5.269,1811.9,1811.8,5.51937]
[1743728564515,6.01,1812.1,1812.0,5.51876]
[1743728564741,5.27,1812.4,1812.3,5.51785]
[1743728565736,5.27,1812.4,1812.3,5.81735]
[1743728565943,5.27,1812.4,1812.3,6.950895]
[1743728567453,0.05503636,1812.6,1812.5,5.51724]
[1743728568447,0.05503636,1812.6,1812.4,5.51751]
[1743728568833,0.05503636,1812.6,1812.4,11.03484]
[1743728569045,0.05503636,1812.6,1812.4,5.5174]
[1743728569946,0.05503636,1812.6,1812.3,11.03545]
[1743728570153,5.57218636,1812.6,1812.3,5.51784]
[1743728570817,5.57218636,1812.6,1812.4,5.51752]
[1743728570818,0.05503636,1812.6,1812.4,5.51752]
[1743728571235,10.31666166,1812.7,1812.5,5.51724]
[1743728571440,10.37169802,1812.7,1812.5,5.51724]
[1743728572219,10.37169802,1812.7,1812.5,5.51714]
[1743728572552,10.37169802,1812.7,1812.4,12.138544]
[1743728572721,10.37169802,1812.7,1812.4,11.03502]
[1743728572922,10.37169802,1812.7,1812.4,5.51751]
[1743728573118,15.88841802,1812.7,1812.4,5.51743]
[1743728573448,15.83338166,1812.7,1812.4,5.51743]
[1743728573755,10.31666166,1812.7,1812.4,11.03486]
[1743728574076,10.37169802,1812.7,1812.4,11.03486]
[1743728574350,10.37169802,1812.7,1812.3,5.51784]
[1743728574552,0.7788,1812.4,1812.1,5.51841]
[1743728574742,0.83383636,1812.4,1812.2,5.51813]
[1743728574945,4.22066166,1812.3,1812.1,5.51841]
[1743728575251,9.48966166,1812.3,1812.1,5.51832]
[1743728575827,9.48966166,1812.3,1812.2,5.51815]
[1743728576154,5.269,1812.3,1812.2,5.51815]
[1743728578266,5.269,1812.3,1812.2,6.621795]
[1743728578458,5.269,1812.5,1812.4,5.51754]
[1743728581434,5.269,1812.5,1812.3,5.51771]
[1743728581769,9.48966166,1812.5,1812.3,5.51771]
[1743728582161,9.54469802,1812.5,1812.3,11.03542]
[1743728582336,9.48966166,1812.5,1812.4,5.51754]
[1743728582673,5.269,1812.5,1812.4,5.51754]
[1743728582836,3.7788,1812.8,1812.6,5.51693]
[1743728583165,5.269,1812.7,1812.6,5.51693]
[1743728583364,9.48966166,1812.7,1812.4,5.51749]
[1743728583670,9.48966166,1812.7,1812.3,5.51781]
[1743728583671,4.99946166,1812.5,1812.3,5.51781]
[1743728584089,0.05503636,1812.4,1812.3,5.51781]
[1743728584369,5.05449802,1812.5,1812.3,5.51781]
[1743728584551,5.05449802,1812.5,1812.3,5.51774]
[1743728584755,5.05449802,1812.5,1812.3,11.03549]
[1743728584975,5.05449802,1812.5,1812.3,5.51774]
[1743728586392,5.05449802,1812.5,1812.2,5.51813]
[1743728586589,0.7788,1812.2,1812.0,5.51873]
[1743728586774,0.7788,1812.2,1811.9,5.519]
[1743728586775,0.83383636,1812.2,1811.9,5.519]
[1743728586949,9.73912166,1812.1,1811.8,5.51935]
[1743728587157,0.8155,1811.9,1811.8,5.51935]
[1743728588075,6.0845,1811.9,1811.8,5.51935]
[1743728588275,6.0845,1811.9,1811.7,11.7015227]
[1743728588852,6.0845,1811.9,1811.8,5.51937]
[1743728589355,6.0845,1811.9,1811.8,6.68949827]
[1743728589554,6.0845,1811.9,1811.8,1.17012827]
[1743728590151,6.0845,1811.9,1811.8,6.68949827]
[1743728590347,6.0845,1811.9,1811.8,1.17012827]
[1743728590548,6.0845,1811.9,1811.7,6.1818727]
[1743728590748,6.0845,1811.9,1811.8,5.51937]
[1743728592685,5.269,1811.9,1811.8,5.51937]
[1743728593459,5.269,1811.9,1811.7,11.7014227]
[1743728593652,5.269,1811.9,1811.8,5.51937]
[1743728594259,5.269,1811.9,1811.7,5.51952]
[1743728594455,5.269,1811.9,1811.8,5.51937]
[1743728594955,5.269,1811.9,1811.7,5.51952]
[1743728595271,5.09119802,1811.8,1811.5,5.52021]
[1743728595468,10.61066802,1811.8,1811.5,5.52021]
[1743728595876,5.09119802,1811.8,1811.5,5.52015]
[1743728596185,5.09119802,1811.8,1811.5,11.04029]
[1743728596495,5.09119802,1811.8,1811.6,5.51983]
[1743728597601,12.0945,1812.1,1811.9,5.51896]
[1743728597798,10.30516166,1812.1,1811.8,5.51931]
[1743728598007,10.36019802,1812.1,1811.9,5.51892]
[1743728598202,10.36019802,1812.1,1812.0,5.51876]
[1743728598355,9.54469802,1812.1,1812.0,5.51876]
[1743728598700,9.48966166,1812.1,1812.0,5.51876]
[1743728598863,9.54469802,1812.1,1812.0,5.51876]
[1743728599194,5.32403636,1812.1,1812.0,5.51876]
[1743728599893,5.269,1812.1,1812.0,5.51876]
[1743728600296,5.269,1812.1,1812.0,6.622528]
[1743728601177,5.27,1812.1,1812.0,12.141188]
[1743728601618,0.87053636,1812.3,1812.2,5.51815]
[1743728601758,47.78916166,1812.5,1812.4,5.51754]
[1743728601959,53.05916166,1812.5,1812.3,11.03532]
[1743728602200,46.97366166,1812.5,1812.4,5.51754]
[1743728602378,39.753,1812.5,1812.4,5.51754]
[1743728603901,5.27,1812.6,1812.5,5.51724]
[1743728605203,4.22066166,1812.7,1812.6,5.51693]
[1743728605376,12.0752,1812.8,1812.6,5.51693]
[1743728605576,12.0752,1812.8,1812.6,11.0337]
[1743728605786,0.7962,1813.0,1812.6,6.62014]
[1743728605991,45.8222,1813.2,1813.0,5.51562]
[1743728606178,40.5532,1813.2,1813.0,5.51553]
[1743728606497,5.269,1813.3,1813.2,5.51511]
[1743728606989,11.02686166,1813.5,1813.3,5.51467]
[1743728606990,9.48966166,1813.5,1813.3,5.51467]
[1743728607211,9.48966166,1813.5,1813.3,11.02934]
[1743728607512,9.48966166,1813.5,1813.3,5.51467]
[1743728607715,5.269,1813.5,1813.3,11.0293]
[1743728608008,5.269,1813.5,1813.4,5.5145]
[1743728608306,5.269,1813.5,1813.3,5.51463]
[1743728609024,0.05503636,1813.6,1813.5,5.51419]
[1743728609228,11.33303636,1813.8,1813.6,5.51388]
[1743728609379,5.268,1813.8,1813.6,5.51388]
[1743728609581,5.32303636,1813.8,1813.6,5.51388]
[1743728609818,5.32303636,1813.8,1813.5,5.51417]
[1743728610123,10.93014618,1813.8,1813.5,5.51417]
[1743728610296,10.93014618,1813.8,1813.6,5.51384]
[1743728610802,10.93014618,1813.8,1813.6,5.51376]
[1743728611924,0.05503636,1813.8,1813.6,11.02744]
[1743728612126,5.56832636,1813.8,1813.5,5.51417]
[1743728612710,0.05503636,1813.8,1813.5,5.51402]
[1743728613081,5.56833636,1813.8,1813.5,5.51402]
[1743728613379,0.05503636,1813.8,1813.5,11.02804]
[1743728613581,0.05503636,1813.8,1813.5,5.51402]
[1743728613780,4.66202793,1813.7,1813.2,5.8145]
[1743728614019,0.85863636,1813.6,1813.3,11.02934]
[1743728614218,5.267,1813.5,1813.4,5.5145]
[1743728614586,5.267,1813.5,1813.3,5.5148]
[1743728614780,5.267,1813.5,1813.2,5.81458]
[1743728615186,5.32203636,1813.5,1813.2,11.32953]
[1743728615432,5.32203636,1813.5,1813.2,5.81445]
[1743728615639,10.83630636,1813.5,1813.2,5.51495]
[1743728615807,17.514712,1813.5,1813.1,5.51541]
[1743728616138,11.94523564,1813.5,1813.1,11.03046]
[1743728616337,11.94523564,1813.5,1813.1,5.51523]
[1743728616528,17.45962564,1813.5,1813.1,5.51523]
[1743728616838,5.51451,1813.4,1813.1,5.51523]
[1743728617042,7.23787184,1813.4,1813.1,5.51523]
[1743728618014,5.51516,1813.2,1812.8,5.51628]
[1743728618331,5.51575,1813.0,1812.7,5.5166]
[1743728618532,0.85973636,1812.9,1812.6,5.51688]
[1743728618742,0.85973636,1812.9,1812.6,5.51679]
[1743728618909,0.85973636,1812.9,1812.6,11.03363]
[1743728619106,8.282,1813.2,1812.7,0.35466408]
[1743728619425,8.33703636,1813.2,1812.9,5.51586]
[1743728619643,13.85217636,1813.2,1812.9,5.51586]
[1743728619807,13.79714,1813.2,1812.9,5.51586]
[1743728620008,5.51583,1813.0,1812.6,5.51689]
[1743728620235,0.05503636,1812.9,1812.7,5.5165]
[1743728621017,0.05503636,1812.9,1812.8,5.51632]
[1743728621240,0.05503636,1813.1,1812.9,5.51589]
[1743728621944,0.05503636,1813.1,1812.9,5.51585]
[1743728622740,0.05503636,1813.1,1812.8,5.51626]
[1743728623040,5.57048636,1813.1,1812.8,5.51626]
[1743728625354,5.57048636,1813.1,1812.8,11.03243]
[1743728625512,5.57048636,1813.1,1812.8,5.51621]
[1743728625714,0.05503636,1813.1,1812.8,11.0324]
[1743728626111,0.05503636,1813.1,1812.9,11.03189]
[1743728626350,3.8047,1813.2,1813.0,5.51571]
[1743728626665,9.0787,1813.2,1813.0,5.51571]
[1743728627054,9.13373636,1813.2,1813.0,5.51571]
[1743728627459,7.18288548,1813.4,1813.0,5.51571]
[1743728627460,0.8047,1813.4,1813.1,5.51541]